bitfinex-derivatives/quotes_BNBF0:USTF0_20250708
["timestamp","ask_amount","ask_price","bid_price","bid_amount"]
[1752016608628,1.70204545,660.21,659.76,4.69449544]
[1752016615136,1.70204545,660.2,659.76,4.69449544]
[1752016618736,3.16137504,660.19,659.76,2.433]
[1752016618937,1.45932959,660.18,659.76,2.433]
[1752016619137,1.45932959,660.17,659.76,2.433]
[1752016619342,1.45932959,660.16,659.76,2.433]
[1752016619543,1.45932959,660.15,659.76,2.433]
[1752016619743,1.45932959,660.14,659.76,2.433]
[1752016619944,1.45932959,660.13,659.76,2.433]
[1752016620141,1.45932959,660.12,659.76,2.433]
[1752016620441,1.45932959,660.11,659.76,2.433]
[1752016620644,1.45932959,660.1,659.76,2.433]
[1752016620940,1.45932959,660.09,659.76,2.433]
[1752016621140,1.45932959,660.08,659.76,2.433]
[1752016621339,1.45932959,660.07,659.76,2.433]
[1752016621540,1.45932959,660.06,659.76,2.433]
[1752016621744,1.45932959,660.05,659.76,2.433]
[1752016621944,1.45932959,660.04,659.76,2.433]
[1752016622141,1.45932959,660.03,659.76,2.433]
[1752016622448,1.45932959,660.02,659.76,2.433]
[1752016622647,1.45932959,660.01,659.76,2.433]
[1752016622845,1.45932959,660.0,659.76,2.433]
[1752016623146,1.70204545,660.2,659.76,2.433]
[1752016623444,1.45935751,660.19,659.76,2.433]
[1752016623645,1.45935751,660.18,659.76,2.433]
[1752016623850,1.45935751,660.17,659.76,2.433]
[1752016624045,1.45935751,660.16,659.76,2.433]
[1752016624350,1.45935751,660.15,659.76,2.433]
[1752016624546,1.45935751,660.14,659.76,2.433]
[1752016624850,1.45935751,660.13,659.76,2.433]
[1752016625048,1.45935751,660.12,659.76,2.433]
[1752016625252,1.70204545,660.22,659.76,2.433]
[1752016625253,1.45935751,660.11,659.76,2.433]
[1752016625453,1.45935751,660.1,659.76,2.433]
[1752016625648,1.45935751,660.09,659.76,2.433]
[1752016625848,1.45935751,660.08,659.76,2.433]
[1752016626052,1.45935751,660.07,659.76,2.433]
[1752016626252,1.45935751,660.06,659.76,2.433]
[1752016626553,1.45935751,660.05,659.76,2.433]
[1752016626750,1.45935751,660.04,659.76,2.433]
[1752016627048,1.45935751,660.03,659.76,2.433]
[1752016627249,1.45935751,660.02,659.76,2.433]
[1752016627554,1.45935751,660.01,659.76,2.433]
[1752016627853,1.45935751,660.0,659.76,2.433]
[1752016628153,1.45935751,659.99,659.76,2.433]
[1752016628351,1.45935751,659.98,659.76,2.433]
[1752016628551,1.45935751,659.97,659.76,2.433]
[1752016628751,1.45935751,659.96,659.76,2.433]
[1752016628949,1.45935751,659.95,659.76,2.433]
[1752016629153,1.45935751,659.94,659.76,2.433]
[1752016629349,1.45935751,659.93,659.76,2.433]
[1752016629553,1.70204545,660.2,659.76,2.433]
[1752016629554,1.45935751,659.92,659.76,2.433]
[1752016629752,1.45935751,659.91,659.76,2.433]
[1752016629952,1.70204545,660.2,659.76,2.433]
[1752016630255,1.45889869,660.19,659.76,2.433]
[1752016630454,1.45889869,660.18,659.76,2.433]
[1752016630652,1.45889869,660.17,659.76,2.433]
[1752016630858,1.45889869,660.16,659.76,2.433]
[1752016631051,1.45889869,660.15,659.76,2.433]
[1752016631254,1.45889869,660.14,659.76,2.433]
[1752016631556,1.45889869,660.13,659.76,2.433]
[1752016631752,1.45889869,660.12,659.76,2.433]
[1752016631957,1.45889869,660.11,659.76,2.433]
[1752016632253,1.45889869,660.1,659.76,2.433]
[1752016632453,1.45889869,660.09,659.76,2.433]
[1752016632658,1.45889869,660.08,659.76,2.433]
[1752016632856,1.45889869,660.07,659.76,2.433]
[1752016633154,1.45889869,660.06,659.76,2.433]
[1752016633454,1.45889869,660.05,659.76,2.433]
[1752016633758,1.45889869,660.04,659.76,2.433]
[1752016633955,1.45889869,660.03,659.76,2.433]
[1752016634162,1.45889869,660.02,659.76,2.433]
[1752016634459,1.45889869,660.01,659.76,2.433]
[1752016634657,1.45889869,660.0,659.76,2.433]
[1752016634861,1.45889869,659.99,659.76,2.433]
[1752016635160,1.45889869,659.98,659.76,2.433]
[1752016635360,1.45889869,659.97,659.76,2.433]
[1752016635559,1.45889869,659.96,659.76,2.433]
[1752016635759,1.70204545,660.22,659.76,2.433]
[1752016635760,1.45889869,659.95,659.76,2.433]
[1752016635959,1.45889869,659.94,659.76,2.433]
[1752016636160,1.45889869,659.93,659.76,2.433]
[1752016636360,1.70204545,660.22,659.76,2.433]
[1752016636560,1.45780429,660.21,659.76,2.433]
[1752016636757,1.45780429,660.2,659.76,2.433]
[1752016637061,3.15984974,660.19,659.76,2.433]
[1752016637257,1.45780429,660.18,659.76,2.433]
[1752016637458,1.45780429,660.17,659.76,2.433]
[1752016637661,1.45780429,660.16,659.76,2.433]
[1752016637961,1.45780429,660.15,659.76,2.433]
[1752016638261,1.45780429,660.14,659.76,2.433]
[1752016638465,1.45780429,660.13,659.76,2.433]
[1752016638764,1.45780429,660.12,659.76,2.433]
[1752016638963,1.45780429,660.11,659.76,2.433]
[1752016639259,1.45780429,660.1,659.76,2.433]
[1752016639463,1.45780429,660.09,659.76,2.433]
[1752016639663,1.45780429,660.08,659.76,2.433]
[1752016639861,1.45780429,660.07,659.76,2.433]
[1752016640064,1.45780429,660.06,659.76,2.433]
[1752016640263,1.45780429,660.05,659.76,2.433]
[1752016640569,1.45780429,660.04,659.76,2.433]
[1752016640767,1.45780429,660.03,659.76,2.433]
[1752016640965,1.45780429,660.02,659.76,2.433]
[1752016641164,2.27081956,660.32,659.76,2.433]
[1752016641165,1.45780429,660.01,659.76,2.433]
[1752016641365,1.45780429,660.0,659.76,2.433]
[1752016641566,1.45780429,659.99,659.76,2.433]
[1752016641764,1.45780429,659.98,659.76,2.433]
[1752016641969,1.70204545,660.17,659.76,2.433]
[1752016642266,1.45746787,660.16,659.76,2.433]
[1752016642565,1.45746787,660.15,659.76,2.433]
[1752016642768,1.45746787,660.14,659.76,2.433]
[1752016642971,1.45746787,660.13,659.76,2.433]
[1752016643270,1.45746787,660.12,659.76,2.433]
[1752016643468,1.45746787,660.11,659.76,2.433]
[1752016643670,1.45746787,660.1,659.76,2.433]
[1752016643971,1.45746787,660.09,659.76,2.433]
[1752016644172,1.70204545,660.17,659.76,2.433]
[1752016644173,1.45746787,660.08,659.76,2.433]
[1752016644373,1.45746787,660.07,659.76,2.433]
[1752016644570,1.45746787,660.06,659.76,2.433]
[1752016644769,1.45746787,660.05,659.76,2.433]
[1752016644974,1.45746787,660.04,659.76,2.433]
[1752016645171,1.45746787,660.03,659.76,2.433]
[1752016645369,1.45746787,660.02,659.76,2.433]
[1752016645571,1.45746787,660.01,659.76,2.433]
[1752016645870,1.45746787,660.0,659.76,2.433]
[1752016646075,1.45746787,659.99,659.76,2.433]
[1752016646372,1.45746787,659.98,659.76,2.433]
[1752016646572,1.70204545,660.17,659.76,2.433]
[1752016646771,1.45727438,660.16,659.76,2.433]
[1752016647073,1.45727438,660.15,659.76,2.433]
[1752016647275,1.45727438,660.14,659.76,2.433]
[1752016647476,1.45727438,660.13,659.76,2.433]
[1752016647677,1.45727438,660.12,659.76,2.433]
[1752016647874,1.45727438,660.11,659.76,2.433]
[1752016648077,1.45727438,660.1,659.76,2.433]
[1752016648277,1.45727438,660.09,659.76,2.433]
[1752016648478,1.45727438,660.08,659.76,2.433]
[1752016648673,1.45727438,660.07,659.76,2.433]
[1752016648877,1.45727438,660.06,659.76,2.433]
[1752016649078,1.45727438,660.05,659.76,2.433]
[1752016649280,1.45727438,660.04,659.76,2.433]
[1752016649574,1.45727438,660.03,659.76,2.433]
[1752016649778,1.45727438,660.02,659.76,2.433]
[1752016649977,1.45727438,660.01,659.76,2.433]
[1752016650175,1.45727438,660.0,659.76,2.433]
[1752016650479,1.45727438,659.99,659.76,2.433]
[1752016650680,1.45727438,659.98,659.76,2.433]
[1752016650880,1.45727438,659.98,659.51,3.39224316]
[1752016650881,1.70204545,660.17,659.51,3.39224316]
[1752016651180,1.45719361,660.16,659.51,3.39224316]
[1752016651378,1.45719361,660.15,659.51,3.39224316]
[1752016651575,1.45719361,660.14,659.51,3.39224316]
[1752016651777,1.45719361,660.13,659.51,3.39224316]
[1752016651976,1.45719361,660.12,659.51,3.39224316]
[1752016652180,1.45719361,660.11,659.51,3.39224316]
[1752016652480,1.45719361,660.1,659.51,3.39224316]
[1752016652679,1.70204545,660.17,659.51,3.39224316]
[1752016652680,1.45719361,660.09,659.51,3.39224316]
[1752016652876,1.45719361,660.08,659.51,3.39224316]
[1752016653078,1.45719361,660.07,659.51,3.39224316]
[1752016653282,1.45719361,660.06,659.51,3.39224316]
[1752016653581,1.45719361,660.05,659.51,3.39224316]
[1752016653777,1.45719361,660.04,659.51,3.39224316]
[1752016654081,1.45719361,660.03,659.52,1.939]
[1752016654281,1.45719361,660.02,659.52,1.939]
[1752016654482,1.45719361,660.01,659.52,1.939]
[1752016654680,1.45719361,660.0,659.52,1.939]
[1752016654878,1.45719361,659.99,659.52,1.939]
[1752016655078,1.45719361,659.98,659.52,1.939]
[1752016655278,1.45719361,659.97,659.52,1.939]
[1752016655479,1.70204545,660.18,659.52,1.939]
[1752016655682,3.15921937,660.17,659.52,1.939]
[1752016655880,1.45717392,660.16,659.52,1.939]
[1752016656079,1.45717392,660.15,659.52,1.939]
[1752016656280,1.45717392,660.14,659.52,1.939]
[1752016656480,1.45717392,660.13,659.52,1.939]
[1752016656680,1.45717392,660.12,659.52,1.939]
[1752016656883,1.45717392,660.11,659.52,1.939]
[1752016657080,1.45717392,660.1,659.52,1.939]
[1752016657381,1.45717392,660.09,659.52,1.939]
[1752016657585,1.45717392,660.08,659.52,1.939]
[1752016657783,1.45717392,660.07,659.52,1.939]
[1752016657982,1.45717392,660.06,659.52,1.939]
[1752016658285,1.45717392,660.05,659.52,1.939]
[1752016658482,1.45717392,660.04,659.52,1.939]
[1752016658681,1.45717392,660.03,659.52,1.939]
[1752016658886,1.45717392,660.02,659.52,1.939]
[1752016659086,1.45717392,660.01,659.52,1.939]
[1752016659287,1.45717392,660.0,659.52,1.939]
[1752016659487,1.45717392,659.99,659.52,1.939]
[1752016659685,1.45717392,659.98,659.52,1.939]
[1752016659887,1.45717392,659.97,659.52,1.939]
[1752016660086,1.70204545,660.17,659.53,3.39224316]
[1752016660385,1.45721495,660.16,659.53,3.39224316]
[1752016660588,1.45721495,660.15,659.53,3.39224316]
[1752016660790,1.45721495,660.14,659.53,3.39224316]
[1752016661084,1.45721495,660.13,659.53,3.39224316]
[1752016661387,1.45721495,660.12,659.53,3.39224316]
[1752016661589,1.45721495,660.11,659.53,3.39224316]
[1752016661886,1.45721495,660.1,659.53,3.39224316]
[1752016662085,1.45721495,660.09,659.53,3.39224316]
[1752016662285,1.45721495,660.08,659.53,3.39224316]
[1752016662485,1.45721495,660.07,659.53,3.39224316]
[1752016662685,1.45721495,660.06,659.53,3.39224316]
[1752016662886,1.45721495,660.05,659.53,3.39224316]
[1752016663188,1.45721495,660.04,659.53,3.39224316]
[1752016663385,1.45721495,660.03,659.53,3.39224316]
[1752016663585,1.45721495,660.02,659.53,3.39224316]
[1752016663786,1.45721495,660.01,659.53,3.39224316]
[1752016663985,1.45721495,660.0,659.53,3.39224316]
[1752016664188,1.45721495,659.99,659.53,3.39224316]
[1752016664385,1.45721495,659.98,659.53,3.39224316]
[1752016664589,1.70204545,660.17,659.53,3.39224316]
[1752016664786,1.45728586,660.16,659.53,3.39224316]
[1752016664988,1.45728586,660.15,659.53,3.39224316]
[1752016665189,1.45728586,660.14,659.53,3.39224316]
[1752016665390,1.45728586,660.13,659.53,3.39224316]
[1752016665589,1.45728586,660.12,659.53,3.39224316]
[1752016665786,1.45728586,660.11,659.53,3.39224316]
[1752016666088,1.45728586,660.1,659.53,3.39224316]
[1752016666386,1.45728586,660.09,659.53,3.39224316]
[1752016666585,1.45728586,660.08,659.53,3.39224316]
[1752016666790,1.45728586,660.07,659.53,3.39224316]
[1752016667086,1.45728586,660.06,659.53,3.39224316]
[1752016667287,1.45728586,660.05,659.56,0.26362738]
[1752016667488,1.45728586,660.04,659.56,0.26362738]
[1752016667687,1.45728586,660.03,659.56,0.26362738]
[1752016667888,1.45728586,660.02,659.56,0.26362738]
[1752016668089,1.45728586,660.01,659.56,0.26362738]
[1752016668287,1.45728586,660.0,659.56,0.26362738]
[1752016668488,1.45728586,659.99,659.56,0.26362738]
[1752016668791,1.45728586,659.98,659.56,0.26362738]
[1752016668993,1.45728586,659.97,659.56,0.26362738]
[1752016669192,1.70204545,660.16,659.56,0.26362738]
[1752016669391,1.45722358,660.15,659.56,0.26362738]
[1752016669587,1.45722358,660.14,659.56,0.26362738]
[1752016669791,1.45722358,660.13,659.56,0.26362738]
[1752016670088,1.45722358,660.12,659.56,0.26362738]
[1752016670288,1.45722358,660.11,659.56,0.26362738]
[1752016670488,1.45722358,660.1,659.56,0.26362738]
[1752016670691,1.45722358,660.09,659.56,0.26362738]
[1752016670891,1.45722358,660.08,659.56,0.26362738]
[1752016671093,1.45722358,660.07,659.56,0.26362738]
[1752016671289,1.45722358,660.06,659.56,0.26362738]
[1752016671493,1.45722358,660.05,659.56,0.26362738]
[1752016671692,1.45722358,660.04,659.56,0.26362738]
[1752016671889,1.45722358,660.03,659.56,0.26362738]
[1752016672093,1.45722358,660.02,659.56,0.26362738]
[1752016672293,1.45722358,660.01,659.56,0.26362738]
[1752016672494,1.45722358,660.0,659.56,0.26362738]
[1752016672789,1.45722358,659.99,659.56,0.26362738]
[1752016672991,1.45722358,659.98,659.56,0.26362738]
[1752016673190,1.45722358,659.97,659.56,0.26362738]
[1752016673394,1.70204545,660.16,659.56,0.26362738]
[1752016673591,1.45744624,660.15,659.56,0.26362738]
[1752016673891,1.45744624,660.14,659.56,0.26362738]
[1752016674091,1.45744624,660.13,659.56,0.26362738]
[1752016674290,1.45744624,660.12,659.56,0.26362738]
[1752016674495,1.45744624,660.11,659.56,0.26362738]
[1752016674693,1.45744624,660.1,659.56,0.26362738]
[1752016674893,1.45744624,660.09,659.56,0.26362738]
[1752016675092,1.45744624,660.08,659.56,0.26362738]
[1752016675393,1.45744624,660.07,659.56,0.26362738]
[1752016675591,1.45744624,660.06,659.56,0.26362738]
[1752016675792,1.45744624,660.05,659.56,0.26362738]
[1752016675993,1.45744624,660.04,659.56,0.26362738]
[1752016676192,1.45744624,660.03,659.56,0.26362738]
[1752016676397,1.45744624,660.02,659.56,0.26362738]
[1752016676596,1.45744624,660.01,659.56,0.26362738]
[1752016676795,1.45744624,660.0,659.56,0.26362738]
[1752016677002,1.45744624,659.99,659.56,0.26362738]
[1752016677195,1.45744624,659.98,659.56,0.26362738]
[1752016677497,1.45744624,659.97,659.56,0.26362738]
[1752016677695,1.70204545,660.16,659.56,0.26362738]
[1752016677895,1.45773437,660.15,659.56,0.26362738]
[1752016678095,1.45773437,660.14,659.56,0.26362738]
[1752016678294,1.45773437,660.13,659.56,0.26362738]
[1752016678594,1.45773437,660.12,659.56,0.26362738]
[1752016678794,1.45773437,660.11,659.56,0.26362738]
[1752016678993,1.45773437,660.1,659.56,0.26362738]
[1752016679198,1.45773437,660.09,659.56,0.26362738]
[1752016679397,1.45773437,660.08,659.56,0.26362738]
[1752016679598,1.45773437,660.07,659.56,0.26362738]
[1752016679794,1.45773437,660.06,659.56,0.26362738]
[1752016679997,1.45773437,660.05,659.56,0.26362738]
[1752016680200,1.45773437,660.04,659.56,0.26362738]
[1752016680393,1.45773437,660.03,659.56,0.26362738]
[1752016680597,1.45773437,660.02,659.56,0.26362738]
[1752016680895,1.45773437,660.01,659.56,0.26362738]
[1752016681095,1.45773437,660.0,659.56,0.26362738]
[1752016681296,1.45773437,659.99,659.56,0.26362738]
[1752016681498,1.45773437,659.98,659.56,0.26362738]
[1752016681795,1.70204545,660.22,659.56,0.26362738]
[1752016682098,1.45793449,660.21,659.56,0.26362738]
[1752016682297,1.45793449,660.2,659.56,0.26362738]
[1752016682498,1.45793449,660.19,659.56,0.26362738]
[1752016682697,1.45793449,660.18,659.56,0.26362738]
[1752016683000,1.45793449,660.17,659.56,0.26362738]
[1752016683200,1.45793449,660.16,659.56,0.26362738]
[1752016683397,1.45793449,660.15,659.56,0.26362738]
[1752016683599,1.45793449,660.14,659.56,0.26362738]
[1752016683798,1.45793449,660.13,659.56,0.26362738]
[1752016683996,1.45793449,660.12,659.56,0.26362738]
[1752016684198,1.70204545,660.22,659.56,0.26362738]
[1752016684199,1.45793449,660.11,659.56,0.26362738]
[1752016684397,1.45793449,660.1,659.56,0.26362738]
[1752016684601,1.45793449,660.09,659.56,0.26362738]
[1752016684802,1.45793449,660.08,659.56,0.26362738]
[1752016685101,1.45793449,660.07,659.56,0.26362738]
[1752016685302,1.45793449,660.06,659.56,0.26362738]
[1752016685500,1.45793449,660.05,659.56,0.26362738]
[1752016685703,1.45793449,660.04,659.56,0.26362738]
[1752016685999,1.45793449,660.03,659.56,0.26362738]
[1752016686199,1.45793449,660.02,659.56,0.26362738]
[1752016686400,1.45793449,660.01,659.56,0.26362738]
[1752016686604,1.70204545,660.22,659.56,0.26362738]
[1752016686605,1.45793449,660.0,659.56,0.26362738]
[1752016686804,1.45793449,659.99,659.56,0.26362738]
[1752016687104,1.70204545,660.21,659.56,0.26362738]
[1752016687305,1.45842513,660.2,659.56,0.26362738]
[1752016687502,1.45842513,660.19,659.56,0.26362738]
[1752016687707,1.45842513,660.18,659.56,0.26362738]
[1752016687903,1.45842513,660.17,659.56,0.26362738]
[1752016688102,1.45842513,660.16,659.56,0.26362738]
[1752016688404,1.45842513,660.15,659.56,0.26362738]
[1752016688604,1.45842513,660.14,659.56,0.26362738]
[1752016688910,1.45842513,660.13,659.56,0.26362738]
[1752016689205,1.45842513,660.12,659.56,0.26362738]
[1752016689402,1.45842513,660.11,659.56,0.26362738]
[1752016689608,1.45842513,660.1,659.56,0.26362738]
[1752016689808,1.45842513,660.09,659.56,0.26362738]
[1752016690005,1.45842513,660.08,659.56,0.26362738]
[1752016690208,2.27081956,660.34,659.56,0.26362738]
[1752016690209,1.45842513,660.07,659.61,3.39224316]
[1752016690504,1.45842513,660.06,659.61,3.39224316]
[1752016690708,1.45842513,660.05,659.61,3.39224316]
[1752016690905,1.45842513,660.04,659.61,3.39224316]
[1752016691104,1.45842513,660.03,659.61,3.39224316]
[1752016691309,1.45842513,660.02,659.61,3.39224316]
[1752016691606,1.45842513,660.01,659.61,3.39224316]
[1752016691810,1.70204545,660.2,659.61,3.39224316]
[1752016692005,1.45812217,660.19,659.61,3.39224316]
[1752016692306,1.45812217,660.18,659.61,3.39224316]
[1752016692606,1.45812217,660.17,659.61,3.39224316]
[1752016692807,1.45812217,660.16,659.61,3.39224316]
[1752016693106,1.45812217,660.15,659.61,3.39224316]
[1752016693303,1.45812217,660.14,659.61,3.39224316]
[1752016693508,1.45812217,660.13,659.61,3.39224316]
[1752016693809,1.45812217,660.12,659.61,3.39224316]
[1752016694005,1.45812217,660.11,659.61,3.39224316]
[1752016694208,1.45812217,660.1,659.61,3.39224316]
[1752016694406,1.45812217,660.09,659.61,3.39224316]
[1752016694612,1.45812217,660.08,659.61,3.39224316]
[1752016694807,1.45812217,660.07,659.61,3.39224316]
[1752016695007,1.45812217,660.06,659.61,3.39224316]
[1752016695206,1.45812217,660.05,659.61,3.39224316]
[1752016695408,1.45812217,660.04,659.6,3.39224316]
[1752016695606,1.45812217,660.03,659.6,3.39224316]
[1752016695810,1.45812217,660.02,659.6,3.39224316]
[1752016696011,1.45812217,660.01,659.6,3.39224316]
[1752016696211,1.45812217,660.0,659.6,3.39224316]
[1752016696412,1.70204545,660.19,659.6,3.39224316]
[1752016696613,1.45871636,660.18,659.6,3.39224316]
[1752016696910,1.45871636,660.17,659.6,3.39224316]
[1752016697108,1.45871636,660.16,659.6,3.39224316]
[1752016697313,1.45871636,660.15,659.6,3.39224316]
[1752016697609,1.45871636,660.14,659.6,3.39224316]
[1752016697814,1.45871636,660.13,659.6,3.39224316]
[1752016698009,1.45871636,660.12,659.6,3.39224316]
[1752016698208,1.45871636,660.11,659.6,3.39224316]
[1752016698413,1.45871636,660.1,659.6,3.39224316]
[1752016698708,1.45871636,660.09,659.6,3.39224316]
[1752016698913,1.45871636,660.08,659.6,3.39224316]
[1752016699210,1.45871636,660.07,659.6,3.39224316]
[1752016699409,1.45871636,660.06,659.6,3.39224316]
[1752016699614,1.45871636,660.05,659.6,3.39224316]
[1752016699809,1.45871636,660.04,659.6,3.39224316]
[1752016700014,1.45871636,660.03,659.6,3.39224316]
[1752016700214,1.45871636,660.02,659.6,3.39224316]
[1752016700411,1.45871636,660.01,659.6,3.39224316]
[1752016700615,1.70204545,660.2,659.6,3.39224316]
[1752016700816,1.45861492,660.19,659.6,3.39224316]
[1752016701015,1.45861492,660.18,659.6,3.39224316]
[1752016701215,1.45861492,660.17,659.6,3.39224316]
[1752016701416,1.45861492,660.16,659.6,3.39224316]
[1752016701613,1.45861492,660.15,659.6,3.39224316]
[1752016701916,1.45861492,660.14,659.6,3.39224316]
[1752016702117,1.45861492,660.13,659.6,3.39224316]
[1752016702314,1.45861492,660.12,659.6,3.39224316]
[1752016702517,1.45861492,660.11,659.6,3.39224316]
[1752016702716,1.45861492,660.1,659.6,3.39224316]
[1752016702918,1.45861492,660.09,659.6,3.39224316]
[1752016703218,1.45861492,660.08,659.6,3.39224316]
[1752016703514,1.45861492,660.07,659.6,3.39224316]
[1752016703718,1.45861492,660.06,659.6,3.39224316]
[1752016703921,1.45861492,660.05,659.6,3.39224316]
[1752016704220,1.45861492,660.04,659.6,3.39224316]
[1752016704419,1.45861492,660.03,659.56,0.26362738]
[1752016704619,1.45861492,660.02,659.56,0.26362738]
[1752016704818,1.45861492,660.01,659.56,0.26362738]
[1752016705021,1.45861492,660.0,659.56,0.26362738]
[1752016705322,1.45861492,659.99,659.56,0.26362738]
[1752016705516,1.45861492,659.98,659.56,0.26362738]
[1752016705718,1.45861492,659.97,659.56,0.26362738]
[1752016705922,1.45861492,659.96,659.56,0.26362738]
[1752016706120,1.45861492,659.95,659.56,0.26362738]
[1752016706324,1.45861492,659.94,659.56,0.26362738]
[1752016706521,1.70204545,660.31,659.56,0.26362738]
[1752016706721,1.45851537,660.3,659.56,0.26362738]
[1752016707024,1.45851537,660.29,659.56,0.26362738]
[1752016707221,1.45851537,660.28,659.56,0.26362738]
[1752016707520,1.45851537,660.27,659.56,0.26362738]
[1752016707724,1.45851537,660.26,659.56,0.26362738]
[1752016707922,1.45851537,660.25,659.56,0.26362738]
[1752016708125,1.45851537,660.24,659.56,0.26362738]
[1752016708324,1.45851537,660.23,659.56,0.26362738]
[1752016708523,1.45851537,660.22,659.56,0.26362738]
[1752016708723,1.45851537,660.21,659.56,0.26362738]
[1752016708923,1.45851537,660.2,659.56,0.26362738]
[1752016709124,1.45851537,660.19,659.56,0.26362738]
[1752016709324,1.45851537,660.18,659.56,0.26362738]
[1752016709522,1.45851537,660.17,659.56,0.26362738]
[1752016709727,1.45851537,660.16,659.56,0.26362738]
[1752016709924,1.45851537,660.15,659.56,0.26362738]
[1752016710127,1.45851537,660.14,659.56,0.26362738]
[1752016710325,1.45851537,660.13,659.56,0.26362738]
[1752016710624,1.45851537,660.12,659.56,0.26362738]
[1752016710828,1.45851537,660.11,659.56,0.26362738]
[1752016711029,1.45851537,660.1,659.56,0.26362738]
[1752016711225,1.45851537,660.09,659.56,0.26362738]
[1752016711526,1.45851537,660.08,659.56,0.26362738]
[1752016711730,1.45851537,660.07,659.56,0.26362738]
[1752016711925,1.45851537,660.06,659.56,0.26362738]
[1752016712124,1.70204545,660.31,659.56,0.26362738]
[1752016712125,1.45851537,660.05,659.56,0.26362738]
[1752016712325,1.45851537,660.04,659.56,0.26362738]
[1752016712525,1.45851537,660.03,659.56,0.26362738]
[1752016712828,1.45851537,660.02,659.56,0.26362738]
[1752016713025,1.45851537,660.01,659.56,0.26362738]
[1752016713324,1.45851537,660.0,659.56,0.26362738]
[1752016713528,1.45851537,659.99,659.56,0.26362738]
[1752016713726,1.45851537,659.98,659.56,0.26362738]
[1752016713929,1.45851537,659.97,659.56,0.26362738]
[1752016714229,1.70204545,660.24,659.56,0.26362738]
[1752016714427,1.45851694,660.23,659.56,0.26362738]
[1752016714730,1.45851694,660.22,659.56,0.26362738]
[1752016715028,1.45851694,660.21,659.56,0.26362738]
[1752016715228,1.45851694,660.2,659.56,0.26362738]
[1752016715432,1.45851694,660.19,659.56,0.26362738]
[1752016715631,1.45851694,660.18,659.56,0.26362738]
[1752016715928,1.45851694,660.17,659.56,0.26362738]
[1752016716132,1.45851694,660.16,659.56,0.26362738]
[1752016716431,1.45851694,660.15,659.56,0.26362738]
[1752016716628,1.45851694,660.14,659.56,0.26362738]
[1752016716830,1.45851694,660.13,659.56,0.26362738]
[1752016717132,1.45851694,660.12,659.57,2.201]
[1752016717328,1.45851694,660.11,659.57,2.201]
[1752016717628,1.45851694,660.1,659.57,2.201]
[1752016717832,1.45851694,660.09,659.57,2.201]
[1752016718029,1.45851694,660.08,659.57,2.201]
[1752016718232,1.45851694,660.07,659.57,2.201]
[1752016718528,1.45851694,660.06,659.57,2.201]
[1752016718732,1.45851694,660.05,659.57,2.201]
[1752016718932,1.45851694,660.04,659.57,2.201]
[1752016719129,1.70204545,660.25,659.57,2.201]
[1752016719130,1.45851694,660.03,659.57,2.201]
[1752016719328,1.45851694,660.02,659.57,2.201]
[1752016719532,1.45851694,660.01,659.57,2.201]
[1752016719730,1.45851694,660.0,659.57,2.201]
[1752016720029,1.45851694,659.99,659.57,2.201]
[1752016720229,1.45851694,659.98,659.57,2.201]
[1752016720430,1.70204545,660.24,659.57,2.201]
[1752016720629,1.45860797,660.23,659.57,2.201]
[1752016720834,1.45860797,660.22,659.57,2.201]
[1752016721034,1.45860797,660.21,659.57,2.201]
[1752016721332,1.45860797,660.2,659.57,2.201]
[1752016721530,1.45860797,660.19,659.57,2.201]
[1752016721737,1.45860797,660.18,659.57,2.201]
[1752016721930,1.45860797,660.17,659.57,2.201]
[1752016722132,1.45860797,660.16,659.57,2.201]
[1752016722331,1.45860797,660.15,659.57,2.201]
[1752016722634,1.45860797,660.14,659.57,2.201]
[1752016722932,1.45860797,660.13,659.57,2.201]
[1752016723133,1.45860797,660.12,659.57,2.201]
[1752016723334,1.45860797,660.11,659.57,2.201]
[1752016723536,1.45860797,660.1,659.57,2.201]
[1752016723836,1.45860797,660.09,659.57,2.201]
[1752016724034,1.45860797,660.08,659.57,2.201]
[1752016724238,1.45860797,660.07,659.57,2.201]
[1752016724435,1.45860797,660.06,659.57,2.201]
[1752016724634,1.45860797,660.05,659.57,2.201]
[1752016724938,1.45860797,660.04,659.57,2.201]
[1752016725137,1.45860797,660.03,659.57,2.201]
[1752016725338,1.45860797,660.02,659.57,2.201]
[1752016725539,1.45860797,660.01,659.57,2.201]
[1752016725737,1.45860797,660.0,659.57,2.201]
[1752016725935,1.45860797,659.99,659.57,2.201]